bitfinex-derivatives/quotes_SOLF0:USTF0_20250819
["timestamp","ask_amount","ask_price","bid_price","bid_amount"]
[1755647753320,3.96785767,176.29,176.19,3.14]
[1755647753516,3.12,176.3,176.19,3.14]
[1755647753719,3.96785662,176.29,176.19,3.14]
[1755647753917,3.12,176.3,176.19,3.14]
[1755647754122,3.96786039,176.29,176.19,3.14]
[1755647754314,3.12,176.3,176.19,3.14]
[1755647754514,3.96804469,176.29,176.19,3.14]
[1755647754714,3.12,176.3,176.19,3.14]
[1755647754911,3.96818401,176.29,176.19,3.14]
[1755647755117,3.12,176.3,176.19,3.14]
[1755647755818,3.12,176.3,176.17,148.64]
[1755647755819,3.12,176.3,176.2,3.14]
[1755647756018,3.12,176.28,176.2,3.14]
[1755647756421,3.96900649,176.27,176.2,3.14]
[1755647756616,3.12,176.28,176.2,3.14]
[1755647756814,3.96916601,176.27,176.2,3.14]
[1755647757121,3.96879948,176.26,176.17,148.64]
[1755647757322,3.12,176.28,176.17,148.64]
[1755647757618,3.96895831,176.27,176.17,148.64]
[1755647757917,3.96895831,176.26,176.17,148.64]
[1755647758224,3.12,176.28,176.17,148.64]
[1755647758517,3.96951619,176.27,176.17,148.64]
[1755647758719,3.96951619,176.26,176.17,148.64]
[1755647758919,3.12,176.28,176.17,148.64]
[1755647759113,3.96951619,176.27,176.17,148.64]
[1755647759319,3.12,176.28,176.17,148.64]
[1755647759519,3.96938381,176.27,176.17,148.64]
[1755647759816,3.12,176.28,176.18,2.99]
[1755647760021,3.96956573,176.27,176.18,2.99]
[1755647760224,3.12,176.28,176.18,2.99]
[1755647760523,3.96960612,176.27,176.18,2.99]
[1755647760722,3.12,176.28,176.18,2.99]
[1755647760916,3.96960374,176.27,176.18,2.99]
[1755647761113,3.12,176.28,176.19,2.99]
[1755647761514,9.84153876,176.31,176.19,2.99]
[1755647761515,2.95,176.31,176.19,2.99]
[1755647761725,3.97098028,176.3,176.19,2.99]
[1755647762024,2.95,176.31,176.21,2.99]
[1755647762225,3.9713327,176.3,176.21,2.99]
[1755647762424,2.95,176.31,176.21,2.99]
[1755647762624,3.97141482,176.3,176.18,2.99]
[1755647762821,2.95,176.31,176.18,2.99]
[1755647763426,148.66,176.36,176.18,2.99]
[1755647763427,2.95,176.35,176.18,2.99]
[1755647763626,3.97214188,176.34,176.23,5.6744]
[1755647763930,3.97214188,176.33,176.24,2.99]
[1755647764123,2.95,176.35,176.24,2.99]
[1755647764327,3.97149789,176.34,176.24,2.99]
[1755647764526,3.97149789,176.33,176.24,2.99]
[1755647764830,3.97108957,176.32,176.24,2.99]
[1755647765024,6.92108957,176.31,176.24,2.99]
[1755647765226,2.95,176.31,176.24,2.99]
[1755647765426,3.97081561,176.3,176.24,2.99]
[1755647765634,2.95,176.31,176.18,5.6761]
[1755647765933,3.97060804,176.3,176.2,2.99]
[1755647766127,2.95,176.28,176.2,2.99]
[1755647768130,3.97325038,176.27,176.2,2.99]
[1755647768430,2.95,176.28,176.2,2.99]
[1755647768636,2.95,176.26,176.13,381.04]
[1755647768840,2.95,176.24,176.13,381.04]
[1755647769039,3.97335156,176.23,176.13,381.04]
[1755647769239,6.92335156,176.22,176.13,381.04]
[1755647769539,0.0358221,176.2,176.13,381.04]
[1755647770740,0.0358221,176.2,176.13,384.03]
[1755647772042,0.0358221,176.2,176.13,389.7078]
[1755647772238,0.0358221,176.2,176.14,2.99]
[1755647773133,2.9858221,176.2,176.14,2.99]
[1755647773643,2.9858221,176.2,176.1,148.46]
[1755647773943,2.9858221,176.2,176.11,2.99]
[1755647776440,2.9858221,176.2,176.1,148.46]
[1755647776641,2.95,176.18,176.1,148.46]
[1755647776842,2.95,176.16,176.07,2.99]
[1755647777234,2.95,176.16,176.04,148.4]
[1755647777441,2.99239524,176.13,176.04,148.4]
[1755647778346,2.99239524,176.13,176.05,2.99]
[1755647779238,0.04239524,176.13,176.06,2.99]
[1755647779741,0.04239524,176.13,176.06,8.67]
[1755647779941,0.04239524,176.13,176.06,2.99]
[1755647780846,0.04239524,176.13,176.07,148.42]
[1755647781049,2.95,176.12,176.03,381.34]
[1755647781248,2.95,176.12,176.04,148.4]
[1755647781848,0.03709506,176.1,176.04,148.4]
[1755647783043,0.03709506,176.1,176.04,151.39]
[1755647784547,0.03709506,176.1,176.04,148.4]
[1755647785049,2.95,176.08,176.04,148.4]
[1755647786040,0.03709506,176.1,176.04,151.39]
[1755647788553,0.03709506,176.1,176.04,148.4]
[1755647788753,3.1,176.09,176.0,148.36]
[1755647789551,0.04068517,176.06,176.01,2.98]
[1755647789756,0.04068517,176.06,176.0,148.36]
[1755647789757,0.04068517,176.06,176.0,151.34]
[1755647789948,3.1,176.11,176.0,151.34]
[1755647790154,3.1,176.11,176.01,2.98]
[1755647790460,0.03901989,176.05,176.04,2.98]
[1755647791056,3.1,176.11,176.04,2.98]
[1755647791364,0.04316335,176.06,176.04,2.98]
[1755647792051,0.04316335,176.06,176.0,151.34]
[1755647792458,0.04316335,176.06,176.0,151.32]
[1755647794258,0.04316335,176.06,175.94,2.98]
[1755647794466,0.04316335,176.06,175.96,5.6835]
[1755647794661,3.1,176.08,175.97,2.98]
[1755647794959,3.1,176.08,175.93,390.1644]
[1755647795156,0.04186508,176.03,175.94,148.34]
[1755647795559,3.1,176.02,175.94,148.34]
[1755647796154,3.1,176.02,175.87,2.98]
[1755647796350,3.1,176.01,175.78,17.04]
[1755647796550,3.1,176.01,175.82,0.98933902]
[1755647796861,3.1,176.01,175.85,2.98]
[1755647797057,0.03789941,175.91,175.86,148.32]
[1755647797261,3.1,175.97,175.86,148.32]
[1755647797262,3.1,175.97,175.88,2.98]
[1755647797666,0.03616748,175.9,175.89,2.98]
[1755647798063,3.1,175.97,175.89,2.98]
[1755647798362,3.1,175.97,175.86,148.32]
[1755647800364,3.1,175.97,175.87,2.98]
[1755647800563,3.1,176.01,175.87,2.98]
[1755647801068,3.1,176.01,175.91,2.98]
[1755647801463,3.1,176.01,175.93,5.6844]
[1755647801669,3.1,176.01,175.91,2.98]
[1755647801857,3.1,176.01,175.92,5.6848]
[1755647802262,3.1,176.01,175.91,2.98]
[1755647802567,3.1,176.06,175.94,2.98]
[1755647802769,3.1,176.06,175.95,2.98]
[1755647803069,3.1,176.06,175.97,5.6832]
[1755647803269,3.1,176.06,175.95,2.98]
[1755647804267,3.1,176.11,175.95,2.98]
[1755647804461,3.1,176.11,176.0,2.98]
[1755647804666,3.1,176.1,175.96,151.3]
[1755647805068,3.1,176.06,175.96,151.3]
[1755647806963,3.1,176.06,175.96,156.9836]
[1755647807166,3.1,176.06,175.96,151.3]
[1755647807562,3.1,176.06,175.96,156.9836]
[1755647807771,3.1,176.06,175.96,151.3]
[1755647808468,3.1,176.06,175.92,2.98]
[1755647808671,3.1,176.06,175.92,8.6647]
[1755647808970,3.1,176.06,175.92,2.98]
[1755647809869,3.1,176.06,175.94,5.6843]
[1755647810269,3.96721149,176.05,175.94,5.6843]
[1755647810474,3.1,176.06,175.94,5.6843]
[1755647810667,3.9673972,176.05,175.94,5.6843]
[1755647810870,3.1,176.06,175.94,5.6843]
[1755647811273,3.1,176.04,175.91,2.98]
[1755647811777,3.1,176.04,175.91,8.6652]
[1755647811970,3.1,176.04,175.91,2.98]
[1755647813176,3.97326146,176.03,175.92,5.6849]
[1755647813377,3.97326146,176.03,175.91,2.98]
[1755647813378,3.1,176.03,175.91,2.98]
[1755647813578,3.97305592,176.02,175.91,2.98]
[1755647813774,3.1,176.03,175.91,2.98]
[1755647813970,3.1,176.01,175.9,530.1]
[1755647814175,3.1,176.01,175.9,148.28]
[1755647815076,13.81397136,176.0,175.82,0.98933902]
[1755647815281,7.0724326,175.99,175.84,2.98]
[1755647815481,7.0724326,175.98,175.84,2.98]
[1755647815683,3.9724326,175.97,175.85,5.6872]
[1755647815885,3.1,175.98,175.85,5.6872]
[1755647816075,3.1,175.96,175.85,5.6872]
[1755647817176,3.1,175.96,175.84,2.98]
[1755647818096,3.1,176.0,175.91,8.6653]
[1755647818783,3.1,176.0,175.91,2.98]
[1755647818989,3.97587008,175.99,175.88,3.2]
[1755647819188,7.00587008,175.98,175.88,3.2]
[1755647819388,3.97587008,175.97,175.88,3.2]
[1755647819697,3.03,175.98,175.88,3.2]
[1755647819988,3.97734516,175.97,175.88,3.2]
[1755647820193,3.03,175.98,175.88,3.2]
[1755647820389,3.03,176.02,175.88,3.2]
[1755647820593,3.03,176.02,175.87,3.2]
[1755647820991,12.87153876,176.0,175.87,3.2]
[1755647821194,6.85771013,175.99,175.87,3.2]
[1755647821395,3.97945246,175.98,175.87,3.2]
[1755647821596,3.03,175.99,175.87,3.2]
[1755647821801,3.9794976,175.98,175.87,3.2]
[1755647821993,3.03,176.03,175.92,3.2]
[1755647822297,3.03,176.01,175.92,3.2]
[1755647822499,3.03,175.99,175.88,3.2]
[1755647822698,3.97953295,175.98,175.88,3.2]
[1755647823096,3.97953295,175.98,175.9,5.6857]
[1755647823296,3.97953295,175.98,175.9,3.2]
[1755647823994,384.89,176.04,175.9,3.2]
[1755647824193,3.98061374,176.03,175.9,3.2]
[1755647824497,3.03,176.04,175.95,3.2]
[1755647824694,3.98199802,176.03,175.95,3.2]
[1755647824896,3.03,176.04,175.95,3.2]
[1755647825486,3.03,176.09,175.95,3.2]
[1755647825687,3.98469001,176.08,175.95,3.2]
[1755647825888,3.03,176.13,175.98,3.2]
[1755647826088,9.84153876,176.17,176.05,3.2]
[1755647826289,6.86998146,176.16,176.05,3.2]
[1755647826488,3.03,176.14,176.05,3.2]
[1755647826787,3.03,176.19,176.05,3.2]
[1755647826989,15.18161298,176.23,176.12,5.6784]
[1755647826990,3.03,176.23,176.12,5.6784]
[1755647827192,3.98815962,176.22,176.13,3.2]
[1755647827393,3.98815962,176.21,176.13,3.2]
[1755647827593,3.03,176.23,176.13,3.2]
[1755647827798,3.98584649,176.22,176.13,3.2]
[1755647828001,3.03,176.23,176.13,3.2]
[1755647828198,3.03,176.21,176.09,3.2]
[1755647828394,3.98324873,176.2,176.09,3.2]
[1755647828599,3.03,176.21,176.09,3.2]
[1755647828794,3.98306958,176.2,176.09,3.2]
[1755647828994,3.98306958,176.19,176.09,3.2]
[1755647829199,12.87153876,176.21,176.09,3.2]
[1755647829402,3.98342678,176.2,176.09,3.2]
[1755647829600,12.87153876,176.21,176.09,3.2]
[1755647829899,3.98334052,176.2,176.09,3.2]
[1755647830096,3.03,176.18,176.06,148.16]
[1755647830393,13.80824888,176.17,176.06,148.16]
[1755647830695,3.03,176.15,176.06,148.16]
[1755647832190,3.03,176.15,176.04,381.98]
[1755647832496,3.9635117,176.14,176.04,381.98]
[1755647832696,3.03,176.15,176.04,381.98]
[1755647833094,3.03,176.15,176.04,387.661]
[1755647833399,3.03,176.15,176.04,381.98]
[1755647834500,3.03,176.11,175.99,151.28]
[1755647834902,3.03,176.11,175.99,156.9626]
[1755647835098,3.03,176.11,175.99,151.28]
[1755647836000,3.96129767,176.1,175.99,151.28]
[1755647836202,3.03,176.11,175.99,151.28]
[1755647836399,3.03,176.09,175.99,151.28]
[1755647837201,3.03,176.19,176.0,3.2]
[1755647837401,3.03,176.16,176.0,3.2]
[1755647838604,3.95978959,176.15,176.0,3.2]
[1755647838803,6.98978959,176.14,176.0,3.2]
[1755647839002,3.03,176.14,176.0,8.8823]
[1755647839603,3.03,176.14,176.0,3.2]
[1755647839804,3.03,176.12,176.0,3.2]
[1755647840205,3.03,176.12,176.0,8.8823]
[1755647840406,3.03,176.16,176.0,3.2]
[1755647840707,3.03,176.16,176.03,5.6814]
[1755647840909,3.03,176.16,176.04,3.2]
[1755647841609,3.03,176.16,176.04,8.8813]
[1755647842203,3.03,176.16,176.04,3.2]
[1755647842405,3.03,176.22,176.04,3.2]
[1755647842905,3.03,176.22,176.1,5.6791]
[1755647843208,3.03,176.22,176.09,3.2]
[1755647843908,3.03,176.22,176.14,3.2]
[1755647844107,3.03,176.27,176.14,3.2]
[1755647844311,3.03,176.27,176.16,5.6772]
[1755647844609,3.03,176.27,176.17,3.2]
[1755647845408,3.03,176.32,176.14,9.84153876]
[1755647845713,3.03,176.32,176.21,3.2]
[1755647846615,3.03,176.32,176.21,8.8757]
[1755647846810,3.03,176.32,176.21,3.2]
[1755647847008,3.03,176.32,176.21,8.8756]
[1755647847312,3.03,176.32,176.21,3.2]
[1755647848318,3.03,176.32,176.21,8.8758]
[1755647848820,3.03,176.32,176.21,3.2]
[1755647851326,3.03,176.32,176.21,8.8756]
[1755647851518,3.03,176.32,176.21,3.2]
[1755647853016,6.97551367,176.31,176.17,2.95]
[1755647853220,3.04,176.3,176.17,2.95]
[1755647853425,3.04,176.3,176.17,8.6268]
[1755647853617,3.04,176.3,176.17,2.95]
[1755647854522,3.04,176.27,176.17,2.95]
[1755647856019,3.04,176.31,176.17,2.95]
[1755647856516,3.04,176.35,176.24,5.6747]
[1755647856719,3.04,176.35,176.24,2.95]
[1755647857523,3.04,176.39,176.24,2.95]
[1755647857824,3.04,176.39,176.27,8.6239]
[1755647858220,3.04,176.39,176.27,2.95]
[1755647860119,3.04,176.39,176.3,5.6728]
[1755647860321,3.04,176.39,176.3,8.6228]
[1755647861321,3.04,176.39,176.3,2.95]
[1755647863226,3.04,176.39,176.3,8.6227]
[1755647863422,3.04,176.44,176.3,2.95]
[1755647863628,3.04,176.44,176.28,2.95]
[1755647864017,3.04,176.44,176.29,5.6731]
[1755647864217,3.92498038,176.43,176.29,5.6731]
[1755647864425,3.04,176.42,176.28,2.95]
[1755647867030,3.04,176.42,176.3,5.6727]
[1755647867225,3.04,176.42,176.31,2.95]
[1755647869332,3.92936103,176.41,176.31,2.95]
[1755647869533,3.04,176.42,176.31,2.95]
[1755647869736,3.92936294,176.41,176.31,2.95]
[1755647870030,3.04,176.42,176.31,2.95]
[1755647871227,3.04,176.4,176.28,2.95]
[1755647871428,6.83342673,176.39,176.28,2.95]
[1755647871633,3.04,176.4,176.28,2.95]
[1755647871831,6.83439359,176.39,176.28,2.95]
[1755647872032,3.04,176.4,176.29,5.6732]
[1755647872228,3.93041472,176.39,176.28,2.95]
[1755647872428,3.04,176.4,176.28,2.95]
[1755647872636,3.92978362,176.39,176.28,8.6233]
[1755647872935,3.04,176.4,176.28,2.95]
[1755647873135,6.8329908,176.39,176.28,2.95]
[1755647873339,3.04,176.4,176.28,2.95]
[1755647874142,387.49264519,176.46,176.3,2.95]
[1755647874143,390.53264519,176.46,176.3,2.95]
[1755647874432,6.83170872,176.45,176.3,2.95]
[1755647874634,3.04,176.46,176.3,2.95]
[1755647874940,3.04,176.46,176.36,2.95]
[1755647876042,3.04,176.46,176.36,8.6208]
[1755647876438,3.04,176.49,176.38,2.95]
[1755647878243,3.04,176.49,176.4,5.6697]
[1755647878439,3.04,176.49,176.4,8.5797]
[1755647878643,3.04,176.49,176.4,2.91]
[1755647879547,147.5,176.51,176.4,2.91]
[1755647880138,3.12,176.5,176.4,2.91]
[1755647881143,3.12,176.54,176.43,8.5786]
[1755647881348,6.84311075,176.53,176.43,2.91]
[1755647881547,3.12,176.54,176.43,2.91]
[1755647881752,3.12,176.54,176.43,8.5787]
[1755647881948,3.12,176.54,176.43,2.91]
[1755647882349,9.84153876,176.45,176.19,11.3524]
[1755647882544,1.24,176.43,176.24,2.91]
[1755647882748,1.24,176.41,176.24,2.91]
[1755647882950,1.24,176.41,176.29,2.91]
[1755647884553,1.24,176.46,176.33,2.91]
[1755647885343,1.24,176.44,176.33,2.91]
[1755647885651,16.67464602,176.43,176.33,2.91]
[1755647885850,1.24,176.41,176.26,5.6741]
[1755647886056,3.94373064,176.4,176.27,2.91]
[1755647886259,1.24,176.38,176.27,2.91]
[1755647886454,1.24,176.36,176.23,381.04]
[1755647886652,3.94373064,176.35,176.23,383.95]
[1755647887158,13.7852694,176.35,176.23,383.95]
[1755647887358,3.94373064,176.34,176.23,383.95]
[1755647887856,3.94373064,176.33,176.23,383.95]
[1755647888058,11.08153876,176.36,176.23,383.95]
[1755647888360,6.84369295,176.35,176.23,383.95]
[1755647888556,3.95043822,176.34,176.23,383.95]
[1755647888858,11.08153876,176.36,176.24,2.91]
[1755647889059,6.84886979,176.35,176.24,2.91]
[1755647889253,3.95342061,176.34,176.24,2.91]
[1755647889453,3.95342061,176.33,176.24,2.91]
[1755647889758,11.08153876,176.36,176.24,2.91]
[1755647889958,6.805317,176.35,176.24,2.91]
[1755647890262,6.805317,176.34,176.24,2.91]
[1755647890460,3.9085503,176.33,176.24,2.91]
[1755647890656,1.24,176.36,176.24,2.91]
[1755647890958,6.80832983,176.35,176.24,2.91]
[1755647891160,3.91029566,176.34,176.25,5.6742]
[1755647891359,1.24,176.36,176.25,5.6742]
[1755647891560,1.24,176.36,176.24,2.91]
[1755647891561,6.808329,176.35,176.24,8.5848]
[1755647891761,6.80818786,176.34,176.24,8.5848]
[1755647891965,3.91021889,176.33,176.24,8.5848]
[1755647892163,1.24,176.36,176.24,2.91]
[1755647892358,6.80765492,176.35,176.24,2.91]
[1755647892555,6.80765492,176.34,176.24,2.91]
[1755647892751,6.80760903,176.33,176.24,2.91]
[1755647892952,1.24,176.36,176.24,2.91]
[1755647893358,6.80943708,176.35,176.24,2.91]
[1755647893559,6.80943708,176.34,176.24,2.91]
[1755647893764,6.80943708,176.33,176.2,2.91]
[1755647893963,1.24,176.3,176.2,2.91]
[1755647894158,6.8080471,176.29,176.2,2.91]
[1755647894358,1.24,176.3,176.2,2.91]
[1755647894665,6.80730669,176.29,176.2,2.91]
[1755647894863,1.24,176.3,176.2,2.91]
[1755647895064,6.80763276,176.29,176.2,2.91]
[1755647895357,1.24,176.3,176.2,2.91]
[1755647897656,3.90770511,176.29,176.16,2.91]
[1755647897857,1.24,176.3,176.16,2.91]
[1755647898065,3.90786295,176.29,176.16,8.5871]
[1755647898360,1.24,176.3,176.16,2.91]
[1755647899169,1.24,176.3,176.21,2.91]
[1755647899565,3.90892544,176.29,176.16,2.91]
[1755647899774,1.24,176.26,176.16,2.91]
[1755647900067,1.24,176.26,176.15,148.74]
[1755647900068,3.90963906,176.25,176.15,148.74]
[1755647900258,1.24,176.26,176.15,148.74]
[1755647900654,1.24,176.26,176.15,151.65]
[1755647902262,148.68,176.37,176.15,151.65]
[1755647902263,1.24,176.3,176.16,2.91]
[1755647902865,1.24,176.3,176.17,5.677]
[1755647903065,1.24,176.3,176.16,2.91]
[1755647903570,3.90611085,176.29,176.16,2.91]
[1755647903768,1.24,176.28,176.16,2.91]
[1755647904071,11.08153876,176.28,176.16,2.91]
[1755647904664,1.24,176.27,176.16,2.91]
[1755647905077,9.84153876,176.24,176.06,2.91]
[1755647905273,1.24,176.19,176.06,2.91]
[1755647905967,9.84153876,176.16,176.0,148.64]
[1755647906267,1.24,176.15,176.01,2.91]
[1755647906869,1.24,176.15,176.0,148.64]
[1755647907064,1.24,176.15,176.06,2.91]
[1755647913367,1.24,176.15,176.02,2.98]
[1755647916566,1.24,176.11,175.98,2.98]
[1755647922077,1.24,176.11,175.99,5.6826]
[1755647922277,1.24,176.11,176.0,2.98]
[1755647922680,1.24,176.11,176.01,5.6821]
[1755647922881,1.24,176.11,176.02,2.98]
[1755647925884,1.24,176.11,175.98,2.98]
[1755647927284,1.24,176.11,175.98,8.6631]
[1755647927485,1.24,176.11,175.99,2.98]
[1755647929579,1.24,176.11,176.0,2.98]
[1755647930186,381.5,176.2,176.02,2.98]
[1755647930187,1.24,176.15,176.02,2.98]
[1755647930482,6.76502799,176.14,176.02,2.98]
[1755647930685,1.24,176.15,176.04,2.98]
[1755647930991,6.76907951,176.14,176.04,2.98]
[1755647931184,1.24,176.15,176.04,8.6611]
[1755647931381,1.24,176.15,176.04,2.98]
[1755647932179,6.77303437,176.14,176.04,2.98]
[1755647932373,1.24,176.15,176.04,2.98]
[1755647932582,6.77564829,176.14,176.04,2.98]
[1755647932884,6.77616689,176.13,176.04,2.98]
[1755647933085,1.24,176.15,176.04,2.98]
[1755647933280,6.77639675,176.14,176.04,2.98]
[1755647933583,6.77639675,176.13,176.04,2.98]
[1755647933778,1.24,176.15,176.04,2.98]
[1755647933982,6.7791622,176.14,176.04,2.98]
[1755647934178,6.7791622,176.13,176.04,2.98]
[1755647934384,2.88268759,176.12,176.04,2.98]
[1755647934581,1.24,176.15,176.04,2.98]
[1755647934781,1.24,176.13,176.04,2.98]
[1755647934981,6.78256819,176.12,176.04,2.98]
[1755647935182,2.8841399,176.11,176.04,2.98]
[1755647935384,1.24,176.13,176.04,2.98]
[1755647935583,6.78527932,176.12,176.04,2.98]
[1755647935775,6.78527932,176.11,176.04,2.98]
[1755647935979,1.24,176.13,176.04,2.98]
[1755647936280,6.78512183,176.12,176.04,2.98]
[1755647936479,6.78512183,176.11,176.04,2.98]
[1755647936679,1.24,176.13,175.98,5.6831]
[1755647936884,1.24,176.11,175.99,2.98]
[1755647937080,2.88716545,176.1,175.99,2.98]
[1755647937284,1.24,176.11,176.01,2.98]
[1755647937490,1.24,176.16,176.01,2.98]
[1755647937782,6.7924701,176.15,176.01,2.98]
[1755647937982,6.7924701,176.14,176.01,2.98]
[1755647938182,3.9040466,176.13,176.01,2.98]
[1755647938382,1.24,176.16,176.01,5.6816]
[1755647938685,6.80086392,176.15,176.02,3.04]
[1755647938980,6.80086392,176.14,176.02,3.04]
[1755647939181,8.04086392,176.13,176.02,3.04]
[1755647939382,1.24,176.11,176.02,3.04]
[1755647939584,6.80082425,176.1,176.02,3.04]
[1755647939880,1.24,176.11,176.02,3.04]
[1755647940081,6.80276155,176.1,176.02,3.04]
[1755647940385,1.24,176.16,176.02,3.04]
[1755647940586,6.80775804,176.15,176.02,3.04]
[1755647940783,392.58153876,176.2,176.02,3.04]
[1755647941084,6.80635742,176.19,176.02,3.04]
[1755647941285,3.91209288,176.18,176.06,3.04]
[1755647941480,6.80767425,176.17,176.06,3.04]
[1755647941680,6.80767425,176.16,176.06,3.04]
[1755647941878,382.74,176.2,176.06,3.04]
[1755647942087,1.24,176.18,176.06,3.04]
[1755647942287,6.80961242,176.17,176.06,3.04]
[1755647942488,6.80961242,176.16,176.06,3.04]
[1755647942683,1.24,176.18,176.06,3.04]
[1755647942884,1.24,176.24,176.09,9.84153876]
[1755647943083,6.8183096,176.23,176.1,3.04]
[1755647943388,6.8183096,176.22,176.12,3.04]
[1755647943579,6.07264519,176.29,176.12,3.04]
[1755647943784,8.06097897,176.28,176.15,5.6773]
[1755647943985,391.58153876,176.32,176.14,3.04]
[1755647943986,6.82097897,176.27,176.14,3.04]
[1755647944190,1.24,176.32,176.18,3.04]
[1755647944494,6.82745001,176.31,176.21,3.04]
[1755647944680,1.24,176.32,176.21,3.04]
[1755647944989,3.92332794,176.31,176.21,3.04]
[1755647945289,1.24,176.32,176.21,3.04]
[1755647945583,1.24,176.3,176.21,3.04]
[1755647947685,3.91963398,176.29,176.18,147.74]
[1755647947891,8.05763888,176.28,176.17,3.04]
[1755647948186,3.91967243,176.27,176.17,3.04]
[1755647948393,5.15967243,176.26,176.17,3.04]
[1755647948593,1.24,176.26,176.17,3.04]
[1755647949695,3.92184397,176.25,176.12,3.04]
[1755647949897,3.86865978,176.24,176.12,3.04]
[1755647950097,1.24,176.26,176.12,3.04]
[1755647950291,6.76800198,176.25,176.12,3.04]
[1755647950495,9.10896779,176.33,176.12,3.04]
[1755647950496,1.24,176.23,176.12,3.04]
[1755647951299,1.24,176.21,176.12,3.04]
[1755647952592,1.24,176.21,176.08,3.04]
[1755647952990,1.24,176.21,176.08,8.7194]
[1755647953193,11.08153876,176.24,176.08,3.04]
[1755647953897,1.24,176.24,176.11,3.04]
[1755647954295,1.24,176.24,176.12,5.6782]
[1755647954494,1.24,176.24,176.13,3.04]
[1755647954693,147.66,176.28,176.13,3.04]
[1755647954896,1.24,176.29,176.14,9.84153876]
[1755647955094,1.24,176.29,176.15,3.04]
[1755647955295,1.24,176.29,176.17,8.7166]
[1755647955699,1.24,176.34,176.18,3.04]
[1755647955901,1.24,176.34,176.18,8.7162]
[1755647956096,1.24,176.34,176.19,3.04]
[1755647956295,11.08153876,176.37,176.19,3.04]
[1755647956500,1.24,176.35,176.17,3.04]
[1755647956901,1.24,176.35,176.17,5.6767]
[1755647957207,1.24,176.33,176.18,3.04]
[1755647959206,1.24,176.33,176.18,8.7164]
[1755647959409,1.24,176.33,176.19,3.04]
[1755647959908,1.24,176.33,176.19,8.716]
[1755647960107,1.24,176.33,176.19,3.04]
[1755647961507,1.24,176.33,176.2,5.6756]
[1755647961709,1.24,176.33,176.21,3.04]
[1755647969306,1.24,176.37,176.21,3.04]
[1755647969511,1.24,176.37,176.22,5.6749]
[1755647969813,1.24,176.37,176.23,3.2]
[1755647970012,1.24,176.37,176.23,8.8747]
[1755647970212,1.24,176.37,176.24,3.2]
[1755647970616,1.24,176.37,176.26,3.2]
[1755647974717,1.24,176.35,176.26,3.2]